Cogmind - Beta 15 @@@ ROGUE MODE // 2025.10.14 @ 01:04:56 Player: Runagate Result: Self-destructed Performance ------------- Evolutions (1) 500 Regions Visited (2) 400 Robots Destroyed (61) 305 Value Destroyed (1218) 1218 Prototype IDs (0) 0 Alien Tech Used (0) 0 Bonus (0) 0 TOTAL SCORE: 2423 Bonus ------- None Cogmind --------- Core Integrity 296/400 Matter 280/300 Energy 124/125 System Corruption 0% Temperature Cool (0) Movement Walking (122) Location -9/Materials Parts ------- > --- POWER (1) -------- Light Ion Engine > --- PROPULSION (4) --- Aluminum Leg Aluminum Leg Aluminum Leg Titanium Leg > --- UTILITY (2) ------ Heat Sink Large Storage Unit > --- WEAPON (2) ------- Beam Rifle Autogun > --- INVENTORY (15) --- Light Ion Engine Aluminum Leg Aluminum Leg Aluminum Leg Aluminum Leg Titanium Leg Titanium Leg Titanium Leg Heat Sink Heat Sink Heat Sink Large Storage Unit Seismic Detector Peak State ------------ > --- POWER ------------ Light Ion Engine > --- PROPULSION ------- Aluminum Leg Aluminum Leg Titanium Leg Titanium Leg > --- UTILITY ---------- Large Storage Unit Seismic Detector > --- WEAPON ----------- EM Shotgun Autogun > --- INVENTORY -------- Light Ion Engine Light Ion Engine Aluminum Leg Aluminum Leg Aluminum Leg Aluminum Leg Aluminum Leg Aluminum Leg Heat Sink Heat Sink [Rating: 16] Favorites ----------- Power Light Ion Engine Engine Light Ion Engine Power Core Light Nuclear Core Propulsion Aluminum Leg Treads Light Treads Leg Aluminum Leg Utility Large Storage Unit Device Heat Sink Storage Large Storage Unit Weapon Small Laser Energy Gun Small Laser Ballistic Gun Assault Rifle Build | -11 -10 -9 ------- Run | Yrd Mat Mat Slots Evolved 2 | . . 2 Power . | . . . Propulsion 2 | . . 2 Utility . | . . . Weapon . | . . . Parts Attached 48 | 8 23 17 Power 8 | 1 4 3 Engine 7 | 1 3 3 Core 1 | . 1 . Reactor . | . . . Propulsion 17 | 3 7 7 Treads 3 | 2 1 . Leg 14 | 1 6 7 Wheel . | . . . Hover . | . . . Flight . | . . . Utility 12 | 2 7 3 Device 8 | 1 5 2 Storage 4 | 1 2 1 Processor . | . . . Hackware . | . . . Protection . | . . . Artifact . | . . . Weapon 11 | 2 5 4 Energy Gun 7 | 1 3 3 Energy Cannon . | . . . Ballistic Gun 4 | 1 2 1 Ballistic Cannon . | . . . Launcher . | . . . Special Weapon . | . . . Impact Weapon . | . . . Slashing Weapon . | . . . Piercing Weapon . | . . . Special Melee Weapon . | . . . Unidentified Prototypes . | . . . Parts Lost 14 | . 6 8 Power 4 | . 1 3 Propulsion 5 | . 2 3 Utility 2 | . 1 1 Weapon 3 | . 2 1 Highest Loss Streak 6 | . 6 3 To Critical Strikes . | . . . Average Backups 8 | 1 9 9 Power 1 | . 2 1 Propulsion 3 | . 2 5 Utility 2 | . 2 2 Weapon 1 | . 2 . Tool/Special . | . . . Unused Backups 6 | . 1 5 Power . | . . . Propulsion 4 | . . 4 Utility 2 | . 1 1 Weapon . | . . . Tool/Special . | . . . Average Slot Usage (%) 98 | . 98 97 Engine 7 | . 7 6 Core 5 | . 5 3 Treads 9 | . 13 . Leg 23 | . 14 43 Device 12 | . 13 10 Storage 13 | . 14 11 Energy Gun 19 | . 21 16 Ballistic Gun 5 | . 6 5 Peak Build Rating 16 | 7 11 16 Average Rating 9 | 5 8 12 On Entrance 5 | . 7 10 Naked Turns . | . . . Heaviest Build 32 | 13 29 32 Greatest Support 54 | 40 40 54 Greatest Overweight (x) 7 | . 7 1 Average Overweight (x) . | . . . Largest Inventory Capacity 15 | 8 15 15 Average Capacity 13 | 6 14 15 Most Carried 15 | 2 15 14 Average Carried 8 | 1 9 9 Final Capacity 15 | 8 15 15 Final Carried 13 | 2 12 13 Class Distribution -------------------- 59% | Scavenger-Mutant 40% | Mutant Dominant Class ---------------- Mutant | -10/Materials Scavenger-Mutant | -9/Materials Resources | -11 -10 -9 ----------- Run | Yrd Mat Mat Matter Collected 1071 | 328 363 380 Remotely . | . . . Salvage Created 1905 | 191 939 775 Parts 114 | 9 60 45 Haulers Intercepted 2 | . 1 1 Recyclers Shooed 4 | 1 1 2 Parts Field Recycled . | . . . Retrieved Matter . | . . . Parts Self-Destructed . | . . . Prevented . | . . . Kills | -11 -10 -9 ------- Run | Yrd Mat Mat Combat Hostiles Destroyed 42 | . 20 22 Guns 42 | . 20 22 Classes Destroyed 9 | 3 5 1 Worker 4 | 2 2 . Tunneler 5 | 4 1 . Hauler 2 | . 1 1 Recycler 4 | 1 2 1 Operator 2 | . 2 . Watcher 2 | . 2 . Swarmer 17 | . 5 12 Grunt 21 | . 15 6 Sentry 4 | . . 4 Best Kill Streak 7 | 3 6 7 Combat Bots Only 6 | . 6 6 Max Kills in Single Turn 2 | 1 2 2 Gunslinging 1 | . 1 1 Exploded . | . . . Melee . | . . . Uniques/NPCs Destroyed . | . . . Combat | -11 -10 -9 -------- Run | Yrd Mat Mat Hostile Shots Fired 291 | . 146 145 Missed 79 | . 37 42 Hits 212 | . 109 103 Projectile 212 | . 109 103 Critical Strikes 1 | . . 1 Damage Taken 2143 | . 1144 999 Core 324 | . 220 104 Absorbed by Shields . | . . . Core Remaining (%) 56 | 100 12 . Volleys Fired 175 | 16 88 71 Largest 2 | 2 2 2 Hottest 90 | 70 90 80 Shots Fired 336 | 32 169 135 Gun 336 | 32 169 135 Cannon . | . . . Launcher . | . . . Special . | . . . Kinetic 102 | 16 51 35 Thermal 216 | 16 118 82 Explosive . | . . . Electromagnetic 18 | . . 18 Robot Hit Streak 16 | 5 11 16 Robot Miss Streak 4 | 2 3 4 Penetration Max . | . . . Secondary Targets 8 | . 4 4 Max Gunslinging Chain 1 | . 1 1 Shots Hit Robots 232 | 19 118 95 Core Hits 99 | 8 51 40 Critical Kills . | . . . Critical Parts Destroyed . | . . . Critical Strikes 8 | 2 6 . Burn 8 | 2 6 . Melee Attacks . | . . . Impact . | . . . Slashing . | . . . Piercing . | . . . Sneak Attacks . | . . . Combat Hostiles . | . . . Follow-up Attacks . | . . . Damage Inflicted 2913 | 256 1369 1288 Guns 2837 | 256 1351 1230 Cannons . | . . . Explosions 41 | . . 41 Melee . | . . . Ramming 35 | . 18 17 Kinetic 818 | 93 323 402 Thermal 1833 | 163 1028 642 Explosive . | . . . Electromagnetic 227 | . . 227 Impact . | . . . Slashing . | . . . Piercing . | . . . Highest Corruption 6 | . 6 . Average Corruption 4 | . 4 . Corruption Purged . | . . . Corruption Blocked . | . . . Effects 15 | . 15 . Message Errors 5 | . 5 . Matter Fused 2 | . 2 . Heat Flow Errors 4 | . 4 . Energy Discharges 1 | . 1 . Parts Fused 1 | . 1 . Data Loss (minor) 2 | . 2 . Overload Shots . | . . . Overflow Damage . | . . . Projectiles . | . . . Explosions . | . . . Melee . | . . . Knockbacks . | . . . Impact . | . . . Kinetic . | . . . Secondary . | . . . Self-Inflicted Damage . | . . . Shots . | . . . Rammed 2 | . 2 . Targets Rammed 5 | . 4 1 Kicked 3 | . 2 1 Crushed . | . . . Highest Temperature 271 | 54 271 70 Average Temperature 36 | 23 46 22 Received Heat Transfer 654 | . 480 174 Siege Activations . | . . . Martial Activations . | . . . Shielding Activations . | . . . Robots Disrupted . | . . . Combat Hostiles . | . . . Robots Corrupted . | . . . Combat Hostiles . | . . . Parts Fried . | . . . Impact Corruptions . | . . . Robots Melted . | . . . Combat Hostiles . | . . . Parts Melted 13 | 3 8 2 Heat Transferred 5318 | 629 3230 1459 Parts Sabotaged . | . . . Parts Stolen . | . . . Parts Stripped . | . . . Power Chain Reactions 1 | . . 1 Alert | -11 -10 -9 ------- Run | Yrd Mat Mat Maximum Alert Level . | . . . Low Security (%) 100 | 100 100 100 Level 1 . | . . . Level 2 . | . . . Level 3 . | . . . Level 4 . | . . . Level 5 . | . . . High Security . | . . . Max Security . | . . . Peak Influence 197 | 10 197 188 Initial 42 | . . 42 Average 96 | 2 97 112 Influence Increases 1265 | 35 632 598 Destroy 0b10 Robot/C 840 | . 400 440 Destroy 0b10 Robot/NC 95 | 35 50 10 Destroy Leader 188 | . 86 102 Successful Hack 44 | . 36 8 Disable Machine 15 | . . 15 Destroy Structure 8 | . . 8 Lose Combat Pursuer 75 | . 60 15 Influence Decreases 1073 | 35 531 507 Entered New Map 59 | . . 59 Time Decay 874 | 35 471 368 Lost Part 140 | . 60 80 Squads Dispatched 10 | . 5 5 Investigation 4 | . 2 2 Extermination . | . . . Reinforcement 6 | . 3 3 Assault . | . . . Garrison . | . . . Intercept . | . . . Searches Triggered . | . . . Construction Impeded . | . . . Haulers Reinforced . | . . . Active Scanning Responses . | . . . Cargo Convoy Interrupts . | . . . Stealth | -11 -10 -9 --------- Run | Yrd Mat Mat Distress Signals 5 | . 2 3 Communications Jammed . | . . . Distress Signals . | . . . Times Spotted 72 | . 38 34 Peak Tracking Total 9 | . 9 8 Tactical Retreats 4 | . 3 1 Traps | -11 -10 -9 ------- Run | Yrd Mat Mat Traps Triggered 6 | . 6 . Indirectly . | . . . Trap Hack Attempts . | . . . Triggered . | . . . Disarmed . | . . . Reprogrammed . | . . . Reused . | . . . Traps Extracted . | . . . Installed . | . . . Triggered . | . . . Machines | -11 -10 -9 ---------- Run | Yrd Mat Mat Machines Disabled 1 | . . 1 Max in Single Turn 1 | . . 1 Machines Repaired . | . . . Machines Dismantled . | . . . Machines Sabotaged . | . . . Overloaded Fab Kills . | . . . Hacking | -11 -10 -9 --------- Run | Yrd Mat Mat Machines Accessed 9 | . 5 4 Terminals 8 | . 5 3 Fabricators . | . . . Repair Stations 1 | . . 1 Recycling Units . | . . . Scanalyzers . | . . . Garrison Access . | . . . Total Hacks 23 | . 10 13 Successful 13 | . 8 5 Failed 10 | . 2 8 Catastrophic 3 | . 1 2 Database Lockouts . | . . . Manual 21 | . 10 11 Terminals 21 | . 10 11 Fabricators . | . . . Repair Stations 2 | . . 2 Recycling Units . | . . . Scanalyzers . | . . . Garrison Access . | . . . Terminal Hacks . | . . . Fabricator Hacks . | . . . Repair Station Hacks 1 | . . 1 Scan Component 1 | . . 1 Recycling Unit Hacks . | . . . Scanalyzer . | . . . Garrison Access Hacks . | . . . Unauthorized Hacks 12 | . 8 4 Terminals 12 | . 8 4 Botnet 5 | . 3 2 Skim 7 | . 5 2 Fabricators . | . . . Repair Stations . | . . . Recycling Units . | . . . Scanalyzers . | . . . Garrison Access . | . . . Data Cores Recovered . | . . . Used . | . . . Hacking Detections 8 | . 4 4 Full Trace Events 1 | . . 1 Feedback Events . | . . . Feedback Blocked . | . . . Robot Schematics Acquired . | . . . Robots Built . | . . . Authchips . | . . . Time . | . . . Total Robot Build Rating . | . . . Part Schematics Acquired . | . . . Parts Built . | . . . Authchips . | . . . Time . | . . . Total Part Build Rating . | . . . Parts Repaired . | . . . Time . | . . . Parts Recycled . | . . . Recycled Matter . | . . . Retrieved Matter . | . . . Retrieved Components . | . . . Parts Scanalyzed . | . . . Part Schematics Acquired . | . . . Parts Damaged . | . . . Bothacking | -11 -10 -9 ------------ Run | Yrd Mat Mat Used RIF Installer . | . . . Robots Hacked . | . . . Non-combat . | . . . Combat . | . . . Robot Hacks Applied . | . . . Relay Couplers Released . | . . . Fabnet Peak Effective % . | . . . Robots Rewired . | . . . Allies Hacked . | . . . Hacks Repelled . | . . . Allies | -11 -10 -9 -------- Run | Yrd Mat Mat Total Allies . | . . . Largest Group . | . . . Highest-Rated Group . | . . . Highest-Rated Ally . | . . . Total Orders . | . . . Ally Attacks . | . . . Total Damage . | . . . Kills . | . . . Allies Corrupted . | . . . Allies Melted . | . . . Intel | -11 -10 -9 ------- Run | Yrd Mat Mat Active Infowar (turns) 808 | 66 331 411 Seismic 808 | 66 331 411 Robot Analysis Total . | . . . Derelict Logs Recovered . | . . . Drone Launches . | . . . Drone Recoveries . | . . . Exploration | -11 -10 -9 ------------- Run | Yrd Mat Mat Turns Passed 2711 | 151 1709 851 Spaces Moved 1287 | 56 772 459 Core 2 | 1 1 . Treads 449 | 54 395 . Legs 836 | 1 376 459 Wheels . | . . . Hover . | . . . Flight . | . . . Fastest Speed 50 | 50 160 120 Average Speed 156 | 157 175 124 Slowest Speed 400 | 160 400 190 Overloaded Moves . | . . . Propulsion Burnouts . | . . . Robots Hopped . | . . . Potential Cave-ins . | . . . Cave-ins Triggered . | . . . Exploration Rate (%) 49 | 3 99 45 Regions Visited 2 Branch Regions . Pre-discovered Areas 1 | . 1 . Known Exits Taken 1 | . 1 . Unknown Exits Taken 1 | 1 . . Scrap Searched . | . . . Spaces Dug . | . . . Terrain Destroyed 6 | . . 6 Melee . | . . . Projectile . | . . . AOE 6 | . . 6 Terrain Rammed . | . . . Walls Destroyed . | . . . Machines Disabled . | . . . Actions | -11 -10 -9 --------- Run | Yrd Mat Mat Total 1642 | 83 957 602 Wait 77 | 2 47 28 Move 1285 | 55 771 459 Hop . | . . . Pick Up 19 | 2 9 8 Fast Attach 15 | 7 4 4 Attach 8 | . 2 6 Detach . | . . . Swap 41 | 1 21 19 Drop 17 | . 11 6 Fire 175 | 16 88 71 Melee . | . . . Ram . | . . . Kick 3 | . 2 1 Crush 2 | . 2 . Escape Stasis . | . . . Rewire . | . . . Trap . | . . . Miscellaneous . | . . . Route ------- -11/Scrapyard -10/Materials (discovered 6 exits: *Mat x3 / [*Min x2] / [*Sub]) -9/Materials (discovered 3 exits: Mat / *Min x2) History --------- Turn | Location | Event 58 | -11/Scrapyard | Discovered new exit (range 15) 152 | -11/Scrapyard | Entered Materials 312 | -10/Materials | Build established: Mutant 568 | -10/Materials | Discovered new exit (range 6) 819 | -10/Materials | Discovered new exit (range 4) 977 | -10/Materials | Core integrity fell below 50% 1023 | -10/Materials | Lost 6 parts (1p2n1u2w) 1136 | -10/Materials | Core integrity fell below 20% 1294 | -10/Materials | Discovered new exit (range 5) 1333 | -10/Materials | Build established: Scavenger-Mutant 1529 | -10/Materials | Discovered new exit (range 10) 1541 | -10/Materials | Discovered new exit (range 14) 1574 | -10/Materials | Discovered new exit (range 15) 1717 | -10/Materials | Learned 2 Mines zone layouts 1744 | -10/Materials | Identified exit to Materials 1759 | -10/Materials | Learned Materials stockpile data 1763 | -10/Materials | Learned location of Recycling (-8) 1764 | -10/Materials | Learned Storage stockpile data 1765 | -10/Materials | Learned location of 2 exits from Materials 1788 | -10/Materials | Learned 4 Recycling zone layouts 1817 | -10/Materials | Learned Storage stockpile data 1861 | -10/Materials | Entered another Materials area 1861 | -9/Materials | Evolved 2 slots: Propulsion x2 1862 | -9/Materials | Identified exit to Mines 1862 | -9/Materials | Identified exit to Materials 2192 | -9/Materials | Lost 3 parts (1p2n) 2409 | -9/Materials | Discovered exit to Mines (range 14) 2712 | -9/Materials | Self-destructed Last Messages --------------- 02695_ K-01 Serf collects debris. 02695_ R-06 Scavenger collects Corrupted Hvy. Assault Rifle. 02704_ G-34 Mercenary destroyed. 02707_ Processing Tank disabled. 02707_ K-01 Serf cleans the Terminal. 02707_ K-01 Serf collects debris. 02712_ Connecting with Terminal... >>Trojan(Botnet) Trojan loaded successfully. Testing... Terminal linked with 1 system. Awaiting botnet instructions. >>Trojan(Skim) Trojan loaded successfully. Testing... Terminal linked with 1 system. Please expand to 3 more systems! 02712_ ALERT: Suspicious activity at Terminal M010. Dispatching Investigation squad. Map ----- +----------------------------------------------------+ | | | | | | | | | | | ?????????????????????????????????????????????????? | | ?????????????????????????????????????????????????? | | ?????????????????????????????????????????????????? | | ?????????????????????????????????????????????????? | | ?????????????????????????????????????????????????? | | ?????????????????????????????????????????????????? | | ?????????????????????????????????????????????????? | | ?????????????????????????????????????????????????? | | ????????????????????###?????##???????????????????? | | ????????????????????# ???? +???????????????????? | | ????????????????????# ??? #??????????#????????? | | ????????????????????# """ #????????? ##+##+???? | | ????????????????????# """ #????????? ????? | | |???????????????????+ """ +???????? ?????? | | ????????????????????# """ #???????? ??????? | | ????????????????????# "" #??????? ???????? | | ????????????????????? #??????? #????????? | | ??????????????????????? %!???????? #????????? | | ??????????????????????###k###??????? #????????? | | ????????????!????## ### k !#?????? #????????? | | ?????????????????# @ ####### # """????? | | ?????????????????+ T r [ + """????? | | ?????????????????# ## ##### # """????? | | ?????????????????###### ## #?????? #????????? | | ??????????????????????## ### #???????? ??????? | | ???????????????????????# #?# #??????????##?????? | | ???????????????????????# ###+####??????????????? | | ???????????????#######?# # #??????????????? | | ???????????????# ?# # #??????????????? | | ???????????????# # # "S #??????????????? | | ???????????????# # # """ #??????????????? | | ?????????????????? + + "" #??????????????? | | ???????????????????????# # #??????????????? | | ??????????????????????## w########??????????????? | | ??????????????????????# #????????????????????? | | ??????????????????????# #????????????????????? | | ??????????????????????# #????????????????????? | | ??????????????????????# #????????????????????? | | ??????????????????????# #????????????????????? | | ?????????????########### ##????????????????????? | | ?????????????# # #??????????######?????? | | ?????????????# + #?????????##!! !##????? | | ?????????????# # #?????????#! !#????? | | ?????????????# # ########### #????? | | ?????????????########### # ## ###????? | +----------------------------------------------------+ Best States ------------- Heat Dissipation 38 Energy Generation 14 Energy Capacity 250 Matter Stores 300 Matter Capacity 300 Sight Range 16 Terrain Scan Density 10 Evasion (%) 55 Recoil Reduction 2 Item Schematics ----------------- None Robot Schematics ------------------ None Fabricated ------------ Nothing Repaired ---------- Nothing Alien Tech Used ----------------- None Achievements -------------- None Challenges ------------ None Game ------ Seed VoltaicMetafieldDiverter Manual? 0 Play Time 00:17:10 Cumulative 164.1 hours Start 2025.10.14 @ 00:52:38 End 2025.10.14 @ 01:04:56 Sessions 1 Manual Loads 0 Difficulty Rogue Special Mode None Game No. 289 Rogue 287 Adventurer 0 Explorer 2 Win Type - Total 1 Types 1/0/0/0/0/0/0/0/0/0 Lore% 46 Gallery% 55 Achievement% 46 Wizard Run 0 Options --------- Layout 2 ASCII 0 Keyboard 1 Movement Arrows Keybinds 0 Fullscreen 1 Font 28/SmallcapsGlow Map View 50x49 Zoom Use 1% Tactical HUD 1 Map Filters NONE Filters NONE Steam 1 RUN: 82dcd4cb-79fb-408b-88c4-8f9b7faa23f2